[Event "FRA-ch Youth 2017"]
[Site "Belfort"]
[Date "2017.04.18"]
[Round "4"]
[White "Georges, Lisa"]
[Black "Bellahcene, Meriem"]
[Result "1-0"]
[ECO "B32"]
[WhiteElo "1704"]
[BlackElo "1919"]
[Annotator "NA RC"]
[PlyCount "89"]
[EventDate "2017.??.??"]
[EventCountry "FRA"]
[SourceTitle "playchess.com"]
[Source "ChessBase"]
[SourceQuality "1"]
[TimeControl "5400+30"]

{[%evp 8,80,24,-8,32767,32767,32767,32767,32767,32767,32767,32767,14,32767,-6,-27,-16,-41,7,4,9,-7,0,-8,-28,-40,6,0,35,-14,68,68,54,5,31,29,39,43,79,39,55,57,58,45,81,101,145,75,170,110,279,191,372,377,357,0,29989,29990,29990,594,29991,1402,1761,1518,1618,1845,1458,6208,6303,29982,29983,5393,32767,29990,29987]} 1. e4 {[%emt 0:00:00]} c5 {[%emt 0:00:13]} 2. Nf3 {[%emt 0:00:00]} Nc6 {[%emt 0:00:22]} 3. d4 {[%emt 0:00:00]} cxd4 {[%emt 0:00:15]} 4. Nxd4 {[%emt 0:00:00]} g6 {[%emt 0:00:21] LiveBook: 8999 Games} 5. g3 {[%emt 0:00:13]} Bg7 {[%emt 0:00:38]} 6. Ne2 {[%emt 0:00:13]} Nf6 {[%emt 0:02:32]} 7. Bg2 {[%emt 0:00:29]} Rb8 {[%emt 0:03:48]} 8. O-O {[%emt 0:02:41]} O-O {[%emt 0:00:37]} 9. Nbc3 {[%emt 0:00:09]} b5 {[%emt 0:02:06]} 10. a3 {[%emt 0:11:08] B34: Sicilian: Accelerated Dragon with 5 Nc3: sidelines} a5 {[%emt 0:11:41]} (10... d6 11. h3 a5 12. Bg5 (12. Ra2 Nd7 13. Be3 Nc5 14. Nd4 Nxd4 15. Bxd4 Bxd4 16. Qxd4 e5 17. Qd2 Be6 18. Raa1 Qb6 19. Rad1 Rbd8 {0-1 (57) Cucarella Montell,A (1996)-Moreno Ruiz,J (2471) Linares 2013}) 12... Nd7 13. Ra2 h6 14. Be3 b4 15. axb4 axb4 16. Nd5 e6 17. Ndf4 b3 18. cxb3 Nc5 19. Nc1 Nb4 {½-½ (66) Kokarev,D (2634)-Lintchevski,D (2517) Khanty-Mansiysk 2016}) 11. Bf4 $146 {[%emt 0:12:48]} d6 {[%emt 0:05:44]} 12. Nd5 {[%emt 0:09:14]} Nxd5 {[%emt 0:07:18]} 13. exd5 {[%emt 0:00:09]} ({Reject} 13. Qxd5 Be6 14. Qd2 (14. Qxc6 $2 Rb6 15. Qxb6 Qxb6 $17) 14... Bxb2 $17) 13... Ne5 {[%emt 0:00:44]} 14. Nd4 {[%emt 0:01:06]} Bd7 {[%emt 0:05:15]} 15. h3 {[%emt 0:01:39]} Qc8 {[%emt 0:04:05]} 16. Kh2 {[%emt 0:01:33]} Qc7 {[%emt 0:07:56]} 17. b3 {[%emt 0:07:11]} Rfc8 {[%emt 0:10:35]} 18. Ra2 {[%emt 0:02:19]} (18. Be3 $14) 18... a4 {[%emt 0:08:06]} (18... e6 $1 $11) 19. Be3 {[%emt 0:04:15]} f5 {[%emt 0:07:51]} 20. Bg5 {[%emt 0:01:14]} Re8 {[%emt 0:05:18]} 21. Re1 {[%emt 0:01:47]} h6 {[%emt 0:00:50]} 22. Bc1 {[%emt 0:03:40]} Rbc8 {[%emt 0:02:41]} 23. Bb2 {[%emt 0:05:16]} Qb6 {[%emt 0:01:38]} 24. f4 {[%emt 0:05:21]} Nf7 $1 {[%emt 0:00:30]} 25. Ne6 {[%emt 0:00:32]} Bxb2 {[%emt 0:02:35]} 26. Rxb2 {[%emt 0:00:28]} axb3 {[%emt 0:01:32]} ({Black should play} 26... Qa7) 27. Rxb3 {[%emt 0:02:02]} (27. cxb3 $142 Bxe6 28. Rxe6 (28. dxe6 Nd8 $14)) 27... Kh7 {[%emt 0:01:24]} (27... Bxe6 $14 28. Rxe6 (28. dxe6 Nd8 $14) 28... Qf2) 28. g4 {[%emt 0:06:33]} fxg4 $2 {[%emt 0:03:25]} ({Black should play} 28... Qf2 $14) 29. Qxg4 {[%emt 0:01:08]} h5 $2 {[%emt 0:02:50]} ({Not} 29... Rxc2 $2 30. Rg3 Ng5 31. Nxg5+ hxg5 32. Qxd7 $18) (29... Qf2 30. Re2 h5 31. Qxh5+ (31. Rxf2 hxg4 32. hxg4 Rh8 $18) 31... gxh5 32. Rxf2 Kh6) 30. Ng5+ {[%emt 0:02:26]} Nxg5 {[%emt 0:01:14]} 31. Qxg5 $2 {[%emt 0:00:53]} ({White has to play} 31. Qxd7 $18 Nf7 32. f5 (32. Rxe7 Rxe7 33. Qxe7 Rc7 34. Rxb5 Qa7 $16)) 31... Qd8 $2 {[%emt 0:00:54]} (31... Bf5 $11) 32. Be4 $1 {[%emt 0:00:50]} Rg8 {[%emt 0:00:17]} 33. Qxh5+ {[%emt 0:00:24]} Kg7 {[%emt 0:00:19]} 34. Qxg6+ {[%emt 0:00:04]} (34. Rg3 $142 Bg4 35. Rxg4 Kf8 36. Bxg6 e6 37. Rxe6 Rxg6 38. Qxg6 Rxc2+ 39. Qxc2 Qf6 40. Qc8+ Qd8 41. Qxd8+ Kf7 42. Qg8#) 34... Kf8 {[%emt 0:00:04]} 35. Qh6+ {[%emt 0:00:24]} Kf7 {[%emt 0:00:20]} 36. Bh7 {[%emt 0:03:47]} Qb6 {[%emt 0:01:08]} 37. Bxg8+ {[%emt 0:00:54]} Rxg8 {[%emt 0:00:04]} 38. Rbe3 {[%emt 0:05:10]} Ke8 {[%emt 0:01:35]} 39. Qh7 {[%emt 0:01:04]} Be6 {[%emt 0:00:32]} 40. dxe6 {[%emt 0:01:21]} Rf8 {[%emt 0:00:04]} 41. Qe4 {[%emt 0:00:00]} Qa6 {[%emt 0:00:18]} 42. Rc3 {[%emt 0:00:41]} Kd8 {[%emt 0:00:43]} 43. Qc6 {[%emt 0:00:08]} Qxc6 {[%emt 0:00:37]} 44. Rxc6 {[%emt 0:00:06]} Rxf4 {[%emt 0:00:03]} 45. Rg1 1-0

[Event "FRA-ch Youth 2017"]
[Site "Belfort"]
[Date "2017.04.18"]
[Round "4"]
[White "Cavailles, Evan"]
[Black "Papadiamandis, Elliot"]
[Result "0-1"]
[ECO "B52"]
[WhiteElo "1694"]
[BlackElo "1944"]
[Annotator "NA RC"]
[PlyCount "134"]
[EventDate "2017.??.??"]
[EventCountry "FRA"]
[SourceTitle "playchess.com"]
[Source "ChessBase"]
[SourceQuality "1"]
[TimeControl "5400+30"]

{[%evp 8,134,31,32767,32767,32767,32767,32767,32767,0,0,-9,0,-17,-14,32767,-15,-16,0,-14,-8,-21,-19,-33,-36,-21,-21,-35,-11,-80,-68,32767,32767,-70,-37,-50,-37,-39,-49,-154,-154,-260,-253,-259,-259,-245,-269,-270,-236,-238,-241,-274,-273,-259,-283,-350,-283,-406,-289,-292,-265,-266,-241,-261,-277,-282,-223,-243,-255,-276,-292,-269,-318,-275,-273,-414,-433,-510,-564,-535,-599,-688,-866,-854,-1083,-671,-699,-1059,-1562,-1441,-1402,-1706,-1250,-1716,-4618,-5583,32767,32767,32767,32767,-29981,32767,32767,32767,32767,32767,32767,32767,32767,32767,32767,32767,32767,32767,32767,32767,32767,32767,32767,32767,32767,32767,32767,32767,32767,32767,-29994,-29994,-29994]} 1. e4 {[%emt 0:00:00]} c5 {[%emt 0:00:20]} 2. Nf3 {[%emt 0:00:00]} d6 {[%emt 0:00:13]} 3. Bb5+ {[%emt 0:00:13]} Bd7 {[%emt 0:00:18]} 4. Bxd7+ {[%emt 0:00:13]} Qxd7 {[%emt 0:00:15] LiveBook: 5991 Games} 5. Nc3 {[%emt 0:02:03]} Nc6 {[%emt 0:01:48] B52: Sicilian: Moscow Variation with 3...Bd7} 6. d3 {[%emt 0:02:46]} e6 {[%emt 0:01:15]} 7. Be3 {[%emt 0:02:46]} Nf6 {[%emt 0:02:41]} 8. O-O {[%emt 0:02:57]} Be7 {[%emt 0:00:20]} 9. h3 {[%emt 0:04:34]} O-O {[%emt 0:00:59]} 10. Qd2 $146 {[%emt 0:08:35]} (10. Re1 a6 11. a4 Qc7 12. d4 {½-½ (12) Voloshin,L (2477)-Bakre,T (2467) Olomouc 2005}) 10... Rab8 {[%emt 0:07:04]} 11. a4 {[%emt 0:02:07]} b6 {[%emt 0:02:05]} 12. Rfe1 {[%emt 0:05:30]} a6 {[%emt 0:04:47]} 13. Bg5 {[%emt 0:03:23]} b5 {[%emt 0:03:10]} 14. axb5 {[%emt 0:00:07]} axb5 {[%emt 0:00:05]} 15. e5 {[%emt 0:01:17]} dxe5 {[%emt 0:02:09]} 16. Nxe5 {[%emt 0:00:16]} Nxe5 {[%emt 0:02:50]} 17. Rxe5 {[%emt 0:00:08]} Qd4 {[%emt 0:02:26]} 18. Bxf6 {[%emt 0:13:31]} Bxf6 {[%emt 0:00:09]} 19. Re4 {[%emt 0:00:09]} Qd7 {[%emt 0:01:15]} 20. Nd1 {[%emt 0:17:33]} c4 {[%emt 0:02:29]} 21. d4 {[%emt 0:05:28]} Ra8 {[%emt 0:05:34]} 22. Rxa8 {[%emt 0:00:07]} Rxa8 {[%emt 0:00:04]} 23. Qc1 {[%emt 0:04:50]} (23. c3 $15) 23... Bxd4 {[%emt 0:01:11]} 24. Qd2 {[%emt 0:01:10] [#]} (24. Re1 $17 {keeps fighting.}) 24... Bxf2+ $1 {[%emt 0:00:01]} 25. Qxf2 {[%emt 0:00:09]} Qxd1+ {[%emt 0:00:02]} 26. Re1 {[%emt 0:00:14]} Qd5 {[%emt 0:00:15]} 27. Rf1 {[%emt 0:02:07]} Qd7 {[%emt 0:00:27]} 28. Qf3 {[%emt 0:00:15]} Rd8 {[%emt 0:00:11]} 29. Kh1 {[%emt 0:01:01]} h6 {[%emt 0:00:48]} 30. Qf2 {[%emt 0:03:22]} f6 {[%emt 0:01:59]} 31. Ra1 {[%emt 0:01:04]} Qd6 {[%emt 0:02:31]} 32. Ra7 {[%emt 0:00:53]} Qd4 {[%emt 0:02:13]} 33. Qxd4 {[%emt 0:01:00]} Rxd4 {[%emt 0:00:06]} 34. Rb7 {[%emt 0:00:29]} Rd5 {[%emt 0:00:28]} 35. Kh2 {[%emt 0:01:09]} Kh7 {[%emt 0:02:17]} 36. Kg3 {[%emt 0:00:48]} Rd2 {[%emt 0:05:03]} 37. Rxb5 {[%emt 0:01:14]} Rxc2 {[%emt 0:00:06]} 38. Rb7 {[%emt 0:00:48]} Kg6 {[%emt 0:01:07]} 39. Kf3 {[%emt 0:01:08]} h5 {[%emt 0:02:03]} 40. g3 {[%emt 0:02:48]} Kf5 {[%emt 0:03:06]} 41. h4 {[%emt 0:03:17]} (41. Rxg7 $142 Rxb2 42. g4+ hxg4+ 43. hxg4+ Ke5 44. Rc7) 41... e5 {[%emt 0:01:43]} 42. Ke3 {[%emt 0:01:48]} g6 {[%emt 0:01:55]} 43. Rb6 {[%emt 0:01:15]} g5 {[%emt 0:06:44]} 44. b4 {[%emt 0:03:27]} cxb3 {[%emt 0:01:24]} 45. Rxb3 {[%emt 0:00:07]} gxh4 {[%emt 0:00:09]} 46. gxh4 {[%emt 0:00:05]} Rc4 {[%emt 0:00:05]} 47. Rb1 {[%emt 0:01:58]} Rxh4 {[%emt 0:00:08]} 48. Rf1+ {[%emt 0:00:09]} Rf4 {[%emt 0:00:08]} 49. Rg1 {[%emt 0:01:01]} h4 {[%emt 0:01:10]} 50. Rg2 {[%emt 0:00:58]} h3 {[%emt 0:00:29]} 51. Rg1 {[%emt 0:00:03]} h2 {[%emt 0:00:14]} 52. Rh1 {[%emt 0:00:02]} Rh4 {[%emt 0:00:04]} 53. Kf3 {[%emt 0:00:09]} e4+ {[%emt 0:00:33]} 54. Kg3 {[%emt 0:00:08]} Kg5 {[%emt 0:00:11]} 55. Kf2 {[%emt 0:00:34]} Kf4 {[%emt 0:00:07]} 56. Kg2 {[%emt 0:00:06]} Kg4 {[%emt 0:00:06]} 57. Rf1 {[%emt 0:00:25]} h1=Q+ {[%emt 0:00:10]} 58. Rxh1 {[%emt 0:00:06]} Rxh1 {[%emt 0:00:04]} 59. Kxh1 {[%emt 0:00:09]} f5 {[%emt 0:00:07]} 60. Kg2 {[%emt 0:00:09]} f4 {[%emt 0:00:05]} 61. Kf2 {[%emt 0:00:04]} e3+ {[%emt 0:00:04]} 62. Ke2 {[%emt 0:00:08]} Kg3 {[%emt 0:00:06]} 63. Kd3 {[%emt 0:00:27]} Kf2 {[%emt 0:00:05]} 64. Ke4 {[%emt 0:00:08]} f3 {[%emt 0:00:07]} 65. Kd5 {[%emt 0:00:04]} e2 {[%emt 0:00:03]} 66. Kd4 {[%emt 0:00:06]} e1=Q {[%emt 0:00:07]} 67. Kd5 {[%emt 0:00:05]} Qe3 {[%emt 0:00:06]} 0-1

[Event "FRA-ch Youth 2017"]
[Site "Belfort"]
[Date "2017.04.18"]
[Round "4"]
[White "Lamaze, Simon"]
[Black "Meillon, Judicael"]
[Result "1/2-1/2"]
[ECO "B90"]
[WhiteElo "1682"]
[BlackElo "1884"]
[Annotator "NA"]
[PlyCount "80"]
[EventDate "2017.??.??"]
[EventCountry "FRA"]
[SourceTitle "playchess.com"]
[Source "ChessBase"]
[SourceQuality "1"]
[TimeControl "5400+30"]

{[%evp 8,72,33,27,32767,32767,32767,32767,32767,32767,32767,0,14,-8,-9,-27,-18,-52,-22,-34,-16,-20,-23,-25,-11,-65,-43,-60,-50,-53,-10,-15,-33,-27,-20,-20,-3,-19,-33,-15,-37,-31,-9,-47,-16,-12,-13,-14,-11,0,0,-13,-14,-14,32767,-10,32767,32767,32767,32767,0,32767,0,32767,32767,0,0]} 1. e4 {[%emt 0:00:00]} c5 {[%emt 0:00:07]} 2. Nf3 {[%emt 0:00:00]} d6 {[%emt 0:00:03]} 3. d4 {[%emt 0:00:00]} cxd4 {[%emt 0:00:05]} 4. Nxd4 {[%emt 0:00:00]} Nf6 {[%emt 0:00:05]} 5. Nc3 {[%emt 0:00:00] LiveBook: 94604 Games} a6 {[%emt 0:02:59]} 6. Be3 {[%emt 0:00:54]} e6 {[%emt 0:01:41]} 7. Bd3 {[%emt 0:01:29]} Be7 {[%emt 0:04:37]} 8. O-O {[%emt 0:01:54]} b5 {[%emt 0:02:28]} 9. f3 {[%emt 0:08:28] B42: Sicilian: Kan Variation: 5 Bd3} (9. a4 b4 10. Na2 e5 11. Nf3 Nc6 12. c4 bxc3 13. Nxc3 O-O 14. h3 Rb8 15. Qe2 Nb4 16. Bc4 Qc7 {1-0 (44) Gdanski,J (2492)-Lind,J (2235) Malmo 2015}) 9... Bb7 {[%emt 0:04:11]} 10. Qd2 {[%emt 0:02:07]} Nbd7 {[%emt 0:03:51]} 11. Rad1 {[%emt 0:02:08]} O-O {[%emt 0:06:01]} 12. Qf2 {[%emt 0:04:11]} Rc8 {[%emt 0:06:29]} 13. Nb3 {[%emt 0:06:00]} d5 $146 {[%emt 0:06:09]} (13... Qc7 14. a3 Rfe8 15. Rfe1 Ba8 16. Bf1 d5 17. exd5 Nxd5 18. Nxd5 Bxd5 {0-1 (50) Mooney,G (1840)-Bhandari,K (2013) Baku 2016}) 14. exd5 {[%emt 0:01:11]} Nxd5 {[%emt 0:01:33]} ({Don't play} 14... exd5 15. Rfe1 $14) 15. Nxd5 {[%emt 0:01:39]} Bxd5 {[%emt 0:00:38]} 16. Be4 {[%emt 0:05:59]} Bxe4 {[%emt 0:06:37]} 17. fxe4 {[%emt 0:00:15]} Qc7 {[%emt 0:00:18]} 18. c3 {[%emt 0:01:36]} Ne5 {[%emt 0:02:11]} 19. Bf4 {[%emt 0:03:21]} Bd6 {[%emt 0:01:46]} 20. Qg3 {[%emt 0:02:44]} f6 {[%emt 0:02:15]} 21. Nd4 {[%emt 0:02:41]} Qe7 {[%emt 0:01:00]} 22. Nf3 {[%emt 0:01:50]} Nxf3+ {[%emt 0:03:09]} 23. Qxf3 {[%emt 0:00:13]} Bxf4 24. Qxf4 {[%emt 0:00:07]} e5 {[%emt 0:02:48]} 25. Qf3 {[%emt 0:07:45]} Rfd8 {[%emt 0:02:02]} 26. h3 {[%emt 0:16:14]} Rc6 {[%emt 0:02:31]} 27. Rxd8+ {[%emt 0:01:30]} Qxd8 {[%emt 0:00:11]} 28. Rd1 {[%emt 0:00:23]} Rd6 {[%emt 0:00:03]} 29. Rxd6 {[%emt 0:01:08]} Qxd6 {[%emt 0:00:00]} 30. Qe2 {[%emt 0:01:14]} g6 {[%emt 0:05:23]} 31. g4 {[%emt 0:00:46]} Kf7 {[%emt 0:02:19]} 32. Kf2 {[%emt 0:01:47]} Ke6 {[%emt 0:00:00]} 33. Ke3 {[%emt 0:00:27]} Qc5+ {[%emt 0:01:49]} 34. Kf3 {[%emt 0:03:13]} Qg1 {[%emt 0:00:00]} 35. a4 {[%emt 0:00:30]} Qh1+ {[%emt 0:05:25]} 36. Kg3 Qg1+ $11 {[%emt 0:00:14]} 37. Kf3 {[%emt 0:00:18]} Qh1+ {[%emt 0:00:18]} 38. Kg3 {[%emt 0:00:04]} Qg1+ {[%emt 0:00:23]} 39. Kf3 Qb6 40. axb5 axb5 1/2-1/2

[Event "FRA-ch Youth 2017"]
[Site "Belfort"]
[Date "2017.04.19"]
[Round "5"]
[White "Kambrath, Yannick"]
[Black "Viennot, Dylan"]
[Result "1/2-1/2"]
[ECO "A13"]
[WhiteElo "2341"]
[BlackElo "2263"]
[Annotator "NA"]
[PlyCount "65"]
[EventDate "2017.??.??"]
[EventCountry "FRA"]
[SourceTitle "playchess.com"]
[Source "ChessBase"]
[SourceQuality "1"]
[TimeControl "40/5400+30:1800+30"]

1. d4 {[%emt 0:00:00]} Nf6 {[%emt 0:00:09]} 2. c4 {[%emt 0:00:00]} e6 {[%emt 0:00:17]} 3. Nf3 {[%emt 0:00:02]} d5 {[%emt 0:00:17]} 4. g3 {[%emt 0:00:12]} Be7 {[%emt 0:00:13]} 5. Bg2 {[%emt 0:00:10]} O-O {[%emt 0:00:08]} 6. O-O {[%emt 0:00:04]} c6 {[%emt 0:00:04]} 7. Qc2 {[%emt 0:00:17]} Nbd7 {[%emt 0:00:17]} 8. Nbd2 {[%emt 0:00:25]} b6 {[%emt 0:00:12]} 9. e4 {[%emt 0:00:27]} Bb7 {[%emt 0:00:36]} 10. Re1 {[%emt 0:00:59]} Rc8 {[%emt 0:01:26]} 11. e5 {[%emt 0:00:27]} Ne8 {[%emt 0:00:09]} 12. cxd5 {[%emt 0:00:35]} cxd5 {[%emt 0:00:26]} 13. Qa4 {[%emt 0:00:36]} a5 {[%emt 0:00:09]} 14. Nf1 {[%emt 0:09:21]} Ba6 {[%emt 0:01:01]} 15. h4 {[%emt 0:01:25]} Nc7 {[%emt 0:01:06]} 16. Bg5 {[%emt 0:02:46]} Bb5 {[%emt 0:02:00]} 17. Qd1 {[%emt 0:01:39]} Na6 {[%emt 0:09:02]} 18. a3 {[%emt 0:06:08]} Bxg5 {[%emt 0:06:14]} 19. hxg5 {[%emt 0:00:11]} Qe7 {[%emt 0:03:11]} 20. Ne3 {[%emt 0:18:06]} Rc7 {[%emt 0:02:58]} 21. Kh2 {[%emt 0:02:38]} Rfc8 {[%emt 0:02:57]} 22. Rh1 {[%emt 0:01:47]} Nf8 {[%emt 0:02:20]} 23. Kg1 {[%emt 0:02:34]} Qd7 {[%emt 0:05:53]} 24. a4 {[%emt 0:27:23]} Bc6 {[%emt 0:02:39]} 25. Ng4 {[%emt 0:01:21]} Bb7 {[%emt 0:03:45]} 26. Ne1 {[%emt 0:01:39]} Nb4 {[%emt 0:05:07]} 27. Nf6+ {[%emt 0:12:12]} gxf6 28. gxf6 {[%emt 0:00:04]} Ng6 {[%emt 0:01:07]} 29. Qh5 {[%emt 0:00:50]} Kf8 {[%emt 0:00:33]} 30. Qxh7 {[%emt 0:00:29]} Ke8 {[%emt 0:00:11]} 31. Qg8+ {[%emt 0:00:16]} Nf8 {[%emt 0:00:13]} 32. Rh8 {[%emt 0:00:16]} Qd8 {[%emt 0:00:20]} 33. Qxf8+ 1/2-1/2

[Event "FRA-ch Youth 2017"]
[Site "Belfort"]
[Date "2017.04.19"]
[Round "5"]
[White "Flick, Antoine"]
[Black "Seignat, Florian"]
[Result "1-0"]
[ECO "D02"]
[WhiteElo "2327"]
[BlackElo "2049"]
[Annotator "ChessBase"]
[PlyCount "77"]
[EventDate "2017.??.??"]
[EventCountry "FRA"]
[SourceTitle "playchess.com"]
[Source "ChessBase"]
[SourceQuality "1"]
[TimeControl "40/5400+30:1800+30"]

1. d4 {[%emt 0:00:00]} d5 {[%emt 0:04:55]} 2. Bf4 {[%emt 0:00:00]} Nf6 {[%emt 0:00:29]} 3. e3 {[%emt 0:00:00]} c5 {[%emt 0:01:14]} 4. c3 {[%emt 0:00:18]} Nc6 {[%emt 0:00:13]} 5. Nf3 {[%emt 0:00:50]} Bf5 {[%emt 0:00:58]} 6. Nbd2 {[%emt 0:04:40]} Qb6 {[%emt 0:00:24]} 7. Qb3 {[%emt 0:00:20]} c4 {[%emt 0:00:09]} 8. Qxb6 {[%emt 0:00:09]} axb6 {[%emt 0:00:04]} 9. a3 {[%emt 0:01:27]} h6 {[%emt 0:00:17]} 10. h3 {[%emt 0:00:11]} e6 {[%emt 0:00:12]} 11. Be2 {[%emt 0:08:56]} Be7 {[%emt 0:01:45]} 12. Ne5 {[%emt 0:00:27]} Nxe5 {[%emt 0:03:10]} 13. Bxe5 {[%emt 0:00:08]} O-O {[%emt 0:00:11]} 14. Bxf6 {[%emt 0:00:06]} Bxf6 {[%emt 0:00:26]} 15. f4 {[%emt 0:00:06]} b5 {[%emt 0:02:37]} 16. O-O {[%emt 0:01:41]} Be7 {[%emt 0:07:28]} 17. Bf3 {[%emt 0:07:04]} Bd3 {[%emt 0:05:11]} 18. Rfc1 {[%emt 0:01:50]} g5 {[%emt 0:04:45]} 19. Kf2 {[%emt 0:07:46]} Kg7 {[%emt 0:08:19]} 20. Be2 {[%emt 0:02:55]} Be4 {[%emt 0:04:37]} 21. Nxe4 {[%emt 0:06:49]} dxe4 {[%emt 0:00:08]} 22. g3 {[%emt 0:00:28]} f5 {[%emt 0:01:48]} 23. Rg1 {[%emt 0:10:57]} Rh8 {[%emt 0:06:04]} 24. a4 {[%emt 0:02:31]} bxa4 {[%emt 0:05:02]} 25. Bxc4 {[%emt 0:01:09]} Kf6 {[%emt 0:00:43]} 26. Bb5 {[%emt 0:05:06]} Ra5 {[%emt 0:00:47]} 27. c4 {[%emt 0:07:12]} a3 {[%emt 0:05:53]} 28. Ra2 {[%emt 0:04:35]} Rc8 {[%emt 0:10:50]} 29. bxa3 {[%emt 0:00:32]} Rxa3 {[%emt 0:01:23]} 30. Rxa3 {[%emt 0:00:13]} Bxa3 {[%emt 0:00:06]} 31. Ra1 {[%emt 0:01:32]} Bb4 {[%emt 0:02:32]} 32. Ra4 {[%emt 0:02:27]} Bc3 {[%emt 0:04:07]} 33. c5 {[%emt 0:01:58]} gxf4 {[%emt 0:01:02]} 34. gxf4 {[%emt 0:00:22]} Rg8 {[%emt 0:01:10]} 35. Ra7 {[%emt 0:03:06]} Rg7 {[%emt 0:01:01]} 36. Ra3 {[%emt 0:00:25]} Bb4 {[%emt 0:00:28]} 37. Ra4 {[%emt 0:00:07]} Bc3 {[%emt 0:00:20]} 38. Ra3 {[%emt 0:00:05]} Bb4 {[%emt 0:00:17]} 39. Ra4 {[%emt 0:00:06]} 1-0

[Event "FRA-ch Youth 2017"]
[Site "Belfort"]
[Date "2017.04.19"]
[Round "5"]
[White "Laurent-Paoli, Pierre"]
[Black "Mohammad, Fahim"]
[Result "1/2-1/2"]
[ECO "D25"]
[WhiteElo "2298"]
[BlackElo "2281"]
[Annotator "NA"]
[PlyCount "124"]
[EventDate "2017.??.??"]
[EventCountry "FRA"]
[SourceTitle "playchess.com"]
[Source "ChessBase"]
[SourceQuality "1"]
[TimeControl "5400+30"]

{[%evp 19,123,-16,-4,-23,8,-11,0,-3,43,54,44,32767,32767,5,0,11,32767,0,0,6,37,0,32767,32767,32767,32767,32767,-18,32767,-16,32767,99,32767,32767,193,32767,32767,32767,211,239,32767,32767,32767,32767,413,383,498,99,128,101,118,47,43,49,52,40,53,32767,32767,56,47,0,6,32767,32767,32767,0,0,32767,32767,0,0,0,0,0,32767,0,-1,32767,0,0,32767,32767,-296,32767,-8,-19,-8,32767,-8,-8,-8,32767,-8,-8,32767,-8,-8,-8,-8,-8,-8,32767,-8,0,-8]} 1. c4 {[%emt 0:00:00]} e6 {[%emt 0:00:26]} 2. Nf3 {[%emt 0:00:18]} d5 {[%emt 0:00:05]} 3. b3 {[%emt 0:00:41]} d4 {[%emt 0:08:11]} 4. e3 {[%emt 0:03:55] A13: English Opening: 1...e6} (4. g3 c5 5. Bg2 Nc6 6. O-O Nf6 7. e3 Be7 8. exd4 cxd4 9. d3 O-O 10. Re1 Ne8 11. a3 a5 12. Nbd2 f6 13. Rb1 e5 14. Nh4 Nc7 15. Qh5 Qe8 16. Qxe8 Rxe8 {½-½ (132) Topalov,V (2761)-Nakamura,H (2787) Leuven 2016}) 4... c5 {[%emt 0:02:10]} 5. g3 {[%emt 0:03:27]} Nc6 {[%emt 0:01:03]} 6. exd4 {[%emt 0:00:08]} cxd4 {[%emt 0:00:50]} 7. Bg2 {[%emt 0:00:37]} Bd6 {[%emt 0:02:17]} 8. O-O {[%emt 0:01:51]} Nge7 {[%emt 0:00:56]} 9. d3 {[%emt 0:00:55]} e5 {[%emt 0:01:45]} 10. Na3 {[%emt 0:08:35]} f6 $146 {[%emt 0:05:12]} (10... O-O 11. Nc2 b6 {0-1 (45) Ravi,L (2402)-Shetty,R (2308) Mumbai 1999}) 11. Nc2 {[%emt 0:02:58]} a6 {[%emt 0:07:43]} 12. Nd2 {[%emt 0:08:46]} O-O {[%emt 0:08:33]} 13. Ne4 {[%emt 0:13:55]} Bf5 {[%emt 0:03:05]} 14. f4 {[%emt 0:08:48]} Bxe4 {[%emt 0:09:43]} 15. Bxe4 {[%emt 0:03:01]} exf4 {[%emt 0:00:11]} 16. gxf4 {[%emt 0:04:21]} f5 {[%emt 0:01:15]} 17. Bg2 {[%emt 0:04:53]} Qc7 {[%emt 0:02:53]} 18. b4 {[%emt 0:05:08]} Ng6 {[%emt 0:06:54]} 19. Qd2 {[%emt 0:00:34]} Rad8 {[%emt 0:03:11]} 20. Rb1 {[%emt 0:03:36]} Nh4 {[%emt 0:09:29]} 21. Bd5+ {[%emt 0:01:04]} Kh8 {[%emt 0:00:01]} 22. Qf2 {[%emt 0:01:01]} Be7 {[%emt 0:01:55]} 23. Nxd4 {[%emt 0:04:15]} (23. b5 $14 axb5 24. Rxb5) 23... Nxd4 {[%emt 0:00:51]} 24. Qxd4 {[%emt 0:00:08]} Rf6 {[%emt 0:01:13]} 25. Bb2 {[%emt 0:04:10]} Rg6+ {[%emt 0:07:20]} 26. Kh1 {[%emt 0:00:06]} Bxb4 {[%emt 0:00:18]} (26... b6 $16 {might work better.}) 27. Qf2 {[%emt 0:00:48]} Rxd5 {[%emt 0:08:22]} 28. cxd5 {[%emt 0:04:43]} Qa5 {[%emt 0:00:10]} (28... Qf7 $16 29. Qd4 h6) 29. Qd4 {[%emt 0:00:15]} h6 {[%emt 0:00:36]} 30. Rbc1 {[%emt 0:03:11]} Be7 {[%emt 0:00:51]} 31. Rf2 {[%emt 0:05:35]} Bf6 $2 {[%emt 0:03:06]} ({Better is} 31... Kh7 $14) 32. Qc5 {[%emt 0:01:26]} Qa4 {[%emt 0:02:02]} 33. Bxf6 $2 {[%emt 0:00:35]} (33. Be5 $18 {is more deadly.}) 33... Rxf6 34. d6 {[%emt 0:01:23]} Kh7 {[%emt 0:00:11]} 35. Rg1 {[%emt 0:00:39]} Qd7 {[%emt 0:00:51]} 36. Qc7 {[%emt 0:00:49]} Rxd6 {[%emt 0:00:01]} 37. Qxd7 {[%emt 0:00:17]} Rxd7 {[%emt 0:00:01]} 38. Rd1 {[%emt 0:00:31]} Rd4 {[%emt 0:00:05]} 39. Rc2 {[%emt 0:00:30]} b5 {[%emt 0:01:25]} ({Wrong is} 39... Rxf4 $2 40. d4 $18) 40. Rf2 {[%emt 0:01:30]} (40. a4 $14) 40... Kg6 {[%emt 0:00:22]} 41. Kg1 {[%emt 0:00:11]} Kf6 {[%emt 0:00:17]} 42. Rc2 {[%emt 0:00:42]} Rxf4 {[%emt 0:00:24]} 43. Rc6+ {[%emt 0:00:17]} Ke5 {[%emt 0:00:03]} 44. Rxa6 {[%emt 0:00:27]} Rb4 {[%emt 0:00:28]} 45. Ra3 {[%emt 0:00:56]} Rb2 {[%emt 0:00:45]} 46. d4+ {[%emt 0:00:18]} Kd5 {[%emt 0:01:55]} 47. Rb3 {[%emt 0:00:31]} Rxb3 {[%emt 0:00:18]} 48. axb3 {[%emt 0:00:02]} f4 {[%emt 0:00:14]} 49. Kf2 {[%emt 0:00:14]} Nf5 {[%emt 0:00:09]} 50. Kf3 {[%emt 0:00:41]} g5 {[%emt 0:00:04]} 51. Rd2 $2 {[%emt 0:01:14]} (51. b4 $11) 51... b4 {[%emt 0:00:17]} 52. Kg4 {[%emt 0:00:26]} Nxd4 {[%emt 0:00:10]} 53. h4 $1 {[%emt 0:00:03]} Ke4 {[%emt 0:00:16]} 54. hxg5 {[%emt 0:00:13]} hxg5 {[%emt 0:00:01]} 55. Rd1 {[%emt 0:00:21]} Ke3 {[%emt 0:03:05]} 56. Re1+ {[%emt 0:00:10]} Kd2 $11 {[%emt 0:00:27]} (56... Ne2 $5 57. Kxg5 $2 f3 $19 58. Kg4 f2 $19) 57. Re5 {[%emt 0:00:42]} f3 {[%emt 0:01:30]} 58. Kg3 {[%emt 0:00:03]} Kc3 {[%emt 0:00:39]} 59. Rxg5 {[%emt 0:01:15]} Kxb3 {[%emt 0:00:02]} 60. Rc5 {[%emt 0:00:35]} Ne6 {[%emt 0:02:40]} 61. Rb5 {[%emt 0:00:17]} Nd4 $11 {[%emt 0:00:02]} 62. Rc5 {[%emt 0:00:04]} Ne6 {[%emt 0:00:45]} 1/2-1/2